[Event "*** Titled Tuesday 3|2 Blitz"]
[Site "Chess.com"]
[Date "2016.02.02"]
[Round "5"]
[White "Zazuliak"]
[Black "APL2001"]
[Result "1-0"]
[WhiteElo "2311"]
[BlackElo "2143"]
[TimeControl "180+2"]
[EndTime "12:10:23 PST"]
[Termination "Zazuliak won on time"]

1. d4 {[%clk 0:02:59.2]} 1... Nf6 {[%clk 0:02:26.4]} 2. c4 {[%clk 0:02:59.4]}
2... g6 {[%clk 0:02:27.4]} 3. Nc3 {[%clk 0:03:00.2]} 3... Bg7 {[%clk 0:02:28.5]}
4. e4 {[%clk 0:03:01.2]} 4... d6 {[%clk 0:02:29.7]} 5. Nf3 {[%clk 0:03:02.5]}
5... O-O {[%clk 0:02:30]} 6. Be2 {[%clk 0:03:03.9]} 6... e5 {[%clk 0:02:31.1]}
7. O-O {[%clk 0:03:05]} 7... Nbd7 {[%clk 0:02:31.8]} 8. Be3 {[%clk 0:03:06.1]}
8... exd4 {[%clk 0:02:27.4]} 9. Nxd4 {[%clk 0:03:06.8]} 9... Nc5 {[%clk
0:02:28.1]} 10. f3 {[%clk 0:03:07.4]} 10... a5 {[%clk 0:02:28.7]} 11. Qd2 {[%clk
0:03:05.9]} 11... Re8 {[%clk 0:02:28.8]} 12. Rfe1 {[%clk 0:03:06.1]} 12... Bd7
{[%clk 0:02:29.1]} 13. Bf1 {[%clk 0:03:06.8]} 13... Qe7 {[%clk 0:02:12.1]} 14.
Rac1 {[%clk 0:02:56.7]} 14... c6 {[%clk 0:02:01.3]} 15. b3 {[%clk 0:02:50.4]}
15... Rad8 {[%clk 0:02:01.6]} 16. Kh1 {[%clk 0:02:44.1]} 16... Bc8 {[%clk
0:01:56.5]} 17. Bg5 {[%clk 0:02:35.1]} 17... Ne6 {[%clk 0:01:51]} 18. Nxe6
{[%clk 0:02:34]} 18... Bxe6 {[%clk 0:01:51.7]} 19. Na4 {[%clk 0:02:29.5]} 19...
Qc7 {[%clk 0:01:49]} 20. Be3 {[%clk 0:02:24.1]} 20... Nd7 {[%clk 0:01:46.1]} 21.
Bd4 {[%clk 0:02:24.7]} 21... Bxd4 {[%clk 0:01:25.8]} 22. Qxd4 {[%clk 0:02:24.9]}
22... b6 {[%clk 0:01:18.4]} 23. Rcd1 {[%clk 0:02:00.7]} 23... Nc5 {[%clk
0:01:17]} 24. Nxc5 {[%clk 0:01:58.1]} 24... bxc5 {[%clk 0:01:05.4]} 25. Qf6
{[%clk 0:01:57.4]} 25... Qe7 {[%clk 0:00:59.4]} 26. Qc3 {[%clk 0:01:50.3]} 26...
Qa7 {[%clk 0:00:59.9]} 27. Bd3 {[%clk 0:01:49.2]} 27... a4 {[%clk 0:00:42.1]}
28. Bc2 {[%clk 0:01:49]} 28... axb3 {[%clk 0:00:43]} 29. axb3 {[%clk 0:01:49.6]}
29... Qb6 {[%clk 0:00:44.3]} 30. Rd2 {[%clk 0:01:43.6]} 30... Rd7 {[%clk
0:00:42.8]} 31. Red1 {[%clk 0:01:43.8]} 31... Red8 {[%clk 0:00:44]} 32. h3
{[%clk 0:01:42.9]} 32... d5 {[%clk 0:00:43.5]} 33. cxd5 {[%clk 0:01:33.6]} 33...
cxd5 {[%clk 0:00:44.8]} 34. exd5 {[%clk 0:01:31.8]} 34... Rxd5 {[%clk
0:00:46.1]} 35. Rxd5 {[%clk 0:01:25]} 35... Rxd5 {[%clk 0:00:47]} 36. Rxd5
{[%clk 0:01:25.2]} 36... Bxd5 {[%clk 0:00:48.4]} 37. Qe3 {[%clk 0:01:21.1]}
37... Qe6 {[%clk 0:00:44.6]} 38. Qxc5 {[%clk 0:01:17]} 38... Bxb3 {[%clk
0:00:43.4]} 39. Be4 {[%clk 0:01:11.8]} 39... Ba4 {[%clk 0:00:43]} 40. Qd4 {[%clk
0:01:01.6]} 40... Qd7 {[%clk 0:00:42.4]} 41. Qe5 {[%clk 0:01:00.8]} 41... Bb3
{[%clk 0:00:41]} 42. Kh2 {[%clk 0:00:56]} 42... Be6 {[%clk 0:00:41.3]} 43. h4
{[%clk 0:00:55.5]} 43... Qd8 {[%clk 0:00:39.1]} 44. Kg3 {[%clk 0:00:54.3]} 44...
h5 {[%clk 0:00:33.3]} 45. Bxg6 {[%clk 0:00:51.1]} 45... fxg6 {[%clk 0:00:34.6]}
46. Qxe6+ {[%clk 0:00:51.6]} 46... Kg7 {[%clk 0:00:36.1]} 47. Qe5+ {[%clk
0:00:52.4]} 47... Kh7 {[%clk 0:00:36.5]} 48. Qf4 {[%clk 0:00:51.9]} 48... Qd1
{[%clk 0:00:35.8]} 49. Kh2 {[%clk 0:00:51.9]} 49... Qd7 {[%clk 0:00:35.9]} 50.
Qg3 {[%clk 0:00:51.8]} 50... Qe7 {[%clk 0:00:35.6]} 51. f4 {[%clk 0:00:52.5]}
51... Qf7 {[%clk 0:00:35.1]} 52. Qg5 {[%clk 0:00:53.4]} 52... Qc7 {[%clk
0:00:35.9]} 53. Kh3 {[%clk 0:00:53.3]} 53... Qc3+ {[%clk 0:00:36.3]} 54. Kh2
{[%clk 0:00:52.1]} 54... Qc7 {[%clk 0:00:37.1]} 55. Qe5 {[%clk 0:00:50.9]} 55...
Qf7 {[%clk 0:00:36.9]} 56. Kg3 {[%clk 0:00:50.7]} 56... Qd7 {[%clk 0:00:37.6]}
57. Qg5 {[%clk 0:00:48.8]} 57... Qd3+ {[%clk 0:00:33.8]} 58. Kh2 {[%clk
0:00:49.4]} 58... Qd7 {[%clk 0:00:34.9]} 59. Qg3 {[%clk 0:00:48.3]} 59... Qe7
{[%clk 0:00:33.3]} 60. Qf2 {[%clk 0:00:44.4]} 60... Qc7 {[%clk 0:00:33.3]} 61.
Kg3 {[%clk 0:00:45]} 61... Qc3+ {[%clk 0:00:33.3]} 62. Qf3 {[%clk 0:00:45.9]}
62... Qe1+ {[%clk 0:00:33.7]} 63. Qf2 {[%clk 0:00:45]} 63... Qc3+ {[%clk
0:00:34.7]} 64. Kh2 {[%clk 0:00:45.6]} 64... Qc7 {[%clk 0:00:35.3]} 65. g3
{[%clk 0:00:45.6]} 65... Qd7 {[%clk 0:00:35.5]} 66. Qc2 {[%clk 0:00:43.5]} 66...
Qf7 {[%clk 0:00:32.4]} 67. Kg2 {[%clk 0:00:43.5]} 67... Qb7+ {[%clk 0:00:33]}
68. Kh2 {[%clk 0:00:43.8]} 68... Qf7 {[%clk 0:00:33.4]} 69. Qe4 {[%clk
0:00:42.5]} 69... Kg7 {[%clk 0:00:32.5]} 70. Qe5+ {[%clk 0:00:42.4]} 70... Kh7
{[%clk 0:00:32]} 71. Qd6 {[%clk 0:00:42.8]} 71... Kg7 {[%clk 0:00:24.3]} 72. Kg2
{[%clk 0:00:41.3]} 72... Kh7 {[%clk 0:00:25.6]} 73. Kf3 {[%clk 0:00:41.3]} 73...
Qb7+ {[%clk 0:00:26.5]} 74. Ke3 {[%clk 0:00:41.5]} 74... Qb3+ {[%clk 0:00:26]}
75. Ke4 {[%clk 0:00:41.9]} 75... Qb7+ {[%clk 0:00:24.4]} 76. Ke5 {[%clk
0:00:42.3]} 76... Qb2+ {[%clk 0:00:23.3]} 77. Ke6 {[%clk 0:00:42.2]} 77... Qb3+
{[%clk 0:00:23.1]} 78. Ke7 {[%clk 0:00:39.1]} 78... Qxg3 {[%clk 0:00:18.4]} 79.
Kf7 {[%clk 0:00:37.8]} 79... Qg4 {[%clk 0:00:17]} 80. Qe6 {[%clk 0:00:33.1]}
80... Qxf4+ {[%clk 0:00:15.3]} 81. Ke7 {[%clk 0:00:24.7]} 81... Qxh4+ {[%clk
0:00:16.3]} 82. Kf7 {[%clk 0:00:25]} 82... Qf4+ {[%clk 0:00:16.7]} 83. Ke7
{[%clk 0:00:25.9]} 83... Qc7+ {[%clk 0:00:17.7]} 84. Ke8 {[%clk 0:00:25]} 1-0

[Event "*** Titled Tuesday 3|2 Blitz"]
[Site "Chess.com"]
[Date "2016.02.02"]
[Round "6"]
[White "Zkid"]
[Black "Zazuliak"]
[Result "0-1"]
[WhiteElo "2411"]
[BlackElo "2322"]
[TimeControl "180+2"]
[EndTime "12:13:32 PST"]
[Termination "Zazuliak won by resignation"]

1. e4 {[%clk 0:03:01.9]} 1... c5 {[%clk 0:02:59.9]} 2. Nf3 {[%clk 0:02:57.8]}
2... g6 {[%clk 0:03:00.7]} 3. d4 {[%clk 0:02:58.8]} 3... cxd4 {[%clk 0:03:01.1]}
4. Nxd4 {[%clk 0:02:59.7]} 4... Bg7 {[%clk 0:03:01.8]} 5. Nc3 {[%clk 0:03:00.2]}
5... Nc6 {[%clk 0:03:02.5]} 6. Be3 {[%clk 0:03:00.1]} 6... Nf6 {[%clk
0:03:03.1]} 7. Bc4 {[%clk 0:02:55.4]} 7... O-O {[%clk 0:03:03.1]} 8. Bb3 {[%clk
0:02:56.4]} 8... d6 {[%clk 0:03:03.8]} 9. h3 {[%clk 0:02:55.8]} 9... Nxd4 {[%clk
0:03:03.5]} 10. Bxd4 {[%clk 0:02:56.4]} 10... Be6 {[%clk 0:03:04.6]} 11. Qd2
{[%clk 0:02:57.5]} 11... Qa5 {[%clk 0:03:04.8]} 12. O-O-O {[%clk 0:02:56.8]}
12... Rfc8 {[%clk 0:03:05.1]} 13. Kb1 {[%clk 0:02:56.7]} 13... b5 {[%clk
0:03:05.6]} 14. g4 {[%clk 0:02:54.6]} 14... Bxb3 {[%clk 0:02:57.6]} 15. cxb3
{[%clk 0:02:52.5]} 15... b4 {[%clk 0:02:58.1]} 16. Nd5 {[%clk 0:02:49.4]} 16...
Nxd5 {[%clk 0:02:52.4]} 17. Bxg7 {[%clk 0:02:45.1]} 17... Nc3+ {[%clk
0:02:45.6]} 18. bxc3 {[%clk 0:02:39.6]} 18... bxc3 {[%clk 0:02:45.8]} 19. Bxc3
{[%clk 0:02:38.8]} 19... Rxc3 {[%clk 0:02:34]} 20. Rc1 {[%clk 0:02:33.3]} 20...
Rxb3+ {[%clk 0:02:27.7]} 21. Kc2 {[%clk 0:02:31.7]} 21... Rb2+ {[%clk
0:02:24.1]} 0-1

[Event "*** Titled Tuesday 3|2 Blitz"]
[Site "Chess.com"]
[Date "2016.02.02"]
[Round "6"]
[White "Journey_to_GrandMaster_YT"]
[Black "RamonManon0g"]
[Result "1-0"]
[WhiteElo "2253"]
[BlackElo "2116"]
[TimeControl "180+2"]
[EndTime "12:14:35 PST"]
[Termination "Journey_to_GrandMaster_YT won by resignation"]

1. d4 {[%clk 0:03:00]} 1... Nf6 {[%clk 0:02:54.4]} 2. c4 {[%clk 0:02:59.7]} 2...
e6 {[%clk 0:02:55.5]} 3. Nc3 {[%clk 0:03:00.6]} 3... Bb4 {[%clk 0:02:56.5]} 4.
Qc2 {[%clk 0:03:01.3]} 4... c5 {[%clk 0:02:56.9]} 5. e3 {[%clk 0:03:01.9]} 5...
O-O {[%clk 0:02:56.6]} 6. Bd3 {[%clk 0:03:02.5]} 6... Nc6 {[%clk 0:02:56.5]} 7.
Ne2 {[%clk 0:03:02.7]} 7... d6 {[%clk 0:02:57.6]} 8. O-O {[%clk 0:03:03.2]} 8...
Bxc3 {[%clk 0:02:57.8]} 9. bxc3 {[%clk 0:03:03.1]} 9... b6 {[%clk 0:02:59.1]}
10. d5 {[%clk 0:03:03.2]} 10... exd5 {[%clk 0:02:59.9]} 11. cxd5 {[%clk
0:03:03.7]} 11... Ne7 {[%clk 0:03:00.8]} 12. c4 {[%clk 0:03:03.6]} 12... Bg4
{[%clk 0:02:56.4]} 13. Bb2 {[%clk 0:03:03]} 13... Ng6 {[%clk 0:02:52.4]} 14. Ng3
{[%clk 0:03:00]} 14... Re8 {[%clk 0:02:52.3]} 15. Rae1 {[%clk 0:02:58.4]} 15...
Ne5 {[%clk 0:02:48.2]} 16. f4 {[%clk 0:02:51.3]} 16... Nxd3 {[%clk 0:02:48.5]}
17. Qxd3 {[%clk 0:02:52]} 17... a6 {[%clk 0:02:38.4]} 18. e4 {[%clk 0:02:52]}
18... Nd7 {[%clk 0:02:34.8]} 19. e5 {[%clk 0:02:45.2]} 19... Nf8 {[%clk
0:02:32.1]} 20. Qc3 {[%clk 0:02:34.6]} 20... f6 {[%clk 0:02:06.2]} 21. h3 {[%clk
0:02:24.2]} 21... Bc8 {[%clk 0:02:04.4]} 22. exf6 {[%clk 0:02:20.6]} 22... Rxe1
{[%clk 0:01:59.2]} 23. f7+ {[%clk 0:02:19.7]} 23... Kxf7 {[%clk 0:01:58.5]} 24.
Qxg7+ {[%clk 0:02:19.5]} 24... Ke8 {[%clk 0:01:58.5]} 25. Rxe1+ {[%clk
0:02:19.8]} 1-0

[Event "*** Titled Tuesday 3|2 Blitz"]
[Site "Chess.com"]
[Date "2016.02.02"]
[Round "6"]
[White "HovmoellerHest"]
[Black "Hafez_Bakr"]
[Result "1-0"]
[WhiteElo "2181"]
[BlackElo "1754"]
[TimeControl "180+2"]
[EndTime "12:15:25 PST"]
[Termination "HovmoellerHest won by resignation"]

1. d4 {[%clk 0:03:01.9]} 1... Nf6 {[%clk 0:02:24]} 2. c4 {[%clk 0:03:02.7]} 2...
g6 {[%clk 0:02:25.2]} 3. Nc3 {[%clk 0:03:03.4]} 3... Bg7 {[%clk 0:02:25.9]} 4.
e4 {[%clk 0:03:05]} 4... d6 {[%clk 0:02:27.3]} 5. f3 {[%clk 0:03:06]} 5... O-O
{[%clk 0:02:28.2]} 6. Be3 {[%clk 0:03:06.9]} 6... e5 {[%clk 0:02:27.8]} 7. Nge2
{[%clk 0:03:07]} 7... Nc6 {[%clk 0:02:28.2]} 8. Qd2 {[%clk 0:03:07]} 8... exd4
{[%clk 0:02:27.4]} 9. Nxd4 {[%clk 0:03:08.1]} 9... Nxd4 {[%clk 0:02:24.6]} 10.
Bxd4 {[%clk 0:03:09]} 10... Re8 {[%clk 0:02:22.2]} 11. O-O-O {[%clk 0:03:09.2]}
11... h5 {[%clk 0:02:15.9]} 12. g3 {[%clk 0:03:01.2]} 12... Be6 {[%clk
0:02:02.5]} 13. Kb1 {[%clk 0:02:59.5]} 13... Re7 {[%clk 0:01:57.9]} 14. f4
{[%clk 0:02:51.4]} 14... Bg4 {[%clk 0:01:55]} 15. Be2 {[%clk 0:02:46.2]} 15...
c5 {[%clk 0:01:51.5]} 16. Bxc5 {[%clk 0:02:31.1]} 16... Bxe2 {[%clk 0:01:48.4]}
17. Qxe2 {[%clk 0:02:24.5]} 17... Rd7 {[%clk 0:01:49.2]} 18. Bd4 {[%clk
0:02:21.3]} 18... Qa5 {[%clk 0:01:47.4]} 19. Nd5 {[%clk 0:02:15.8]} 19... Nxd5
{[%clk 0:01:47.5]} 20. exd5 {[%clk 0:02:16]} 20... Bxd4 {[%clk 0:01:42.8]} 21.
Rxd4 {[%clk 0:02:17]} 21... Qb6 {[%clk 0:01:41.1]} 22. Re4 {[%clk 0:02:13.8]}
22... Rc8 {[%clk 0:01:39.8]} 23. Re8+ {[%clk 0:02:09]} 1-0

[Event "*** Titled Tuesday 3|2 Blitz"]
[Site "Chess.com"]
[Date "2016.02.02"]
[Round "6"]
[White "Smirnov_Pavel"]
[Black "oskariot"]
[Result "1-0"]
[WhiteElo "2523"]
[BlackElo "2334"]
[TimeControl "180+2"]
[EndTime "12:15:26 PST"]
[Termination "Smirnov_Pavel won by resignation"]

1. d4 {[%clk 0:03:01.9]} 1... Nf6 {[%clk 0:02:59.1]} 2. c4 {[%clk 0:03:01.2]}
2... g6 {[%clk 0:02:59]} 3. Nc3 {[%clk 0:03:00.9]} 3... Bg7 {[%clk 0:03:00.3]}
4. g3 {[%clk 0:03:00.9]} 4... d6 {[%clk 0:03:01.3]} 5. Bg2 {[%clk 0:03:01.7]}
5... O-O {[%clk 0:03:03.2]} 6. Nf3 {[%clk 0:03:03.3]} 6... Nc6 {[%clk
0:03:04.9]} 7. O-O {[%clk 0:03:04.2]} 7... Bg4 {[%clk 0:03:06.5]} 8. Ne1 {[%clk
0:03:04]} 8... Qd7 {[%clk 0:02:41.6]} 9. Nc2 {[%clk 0:03:00.2]} 9... Bh3 {[%clk
0:02:39.5]} 10. e4 {[%clk 0:02:59.9]} 10... Bxg2 {[%clk 0:02:38.6]} 11. Kxg2
{[%clk 0:03:00.6]} 11... e6 {[%clk 0:02:30.7]} 12. Be3 {[%clk 0:02:58.5]} 12...
d5 {[%clk 0:02:27.5]} 13. e5 {[%clk 0:02:57.7]} 13... Ne8 {[%clk 0:02:17.4]} 14.
cxd5 {[%clk 0:02:56.3]} 14... exd5 {[%clk 0:02:19.2]} 15. f4 {[%clk 0:02:57.4]}
15... Ne7 {[%clk 0:02:20.3]} 16. Qd3 {[%clk 0:02:53.8]} 16... c6 {[%clk
0:02:17]} 17. Rad1 {[%clk 0:02:53.7]} 17... Nc7 {[%clk 0:02:09.2]} 18. Bg1
{[%clk 0:02:45.2]} 18... Qf5 {[%clk 0:01:55.9]} 19. Qe2 {[%clk 0:02:41.4]} 19...
h5 {[%clk 0:01:55.4]} 20. Ne3 {[%clk 0:02:40.6]} 20... Qd7 {[%clk 0:01:55.7]}
21. f5 {[%clk 0:02:41.8]} 21... Bh6 {[%clk 0:01:29.8]} 22. f6 {[%clk 0:02:39.7]}
22... Nc8 {[%clk 0:01:29]} 23. Nf5 {[%clk 0:02:38]} 23... gxf5 {[%clk
0:00:51.7]} 24. Qxh5 {[%clk 0:02:37]} 24... Ne6 {[%clk 0:00:52.1]} 25. Qxh6
{[%clk 0:02:37]} 25... Rd8 {[%clk 0:00:53.4]} 26. Rxf5 {[%clk 0:02:37.3]} 26...
Qe8 {[%clk 0:00:54.8]} 27. Rg5+ {[%clk 0:02:38]} 1-0

[Event "*** Titled Tuesday 3|2 Blitz"]
[Site "Chess.com"]
[Date "2016.02.02"]
[Round "6"]
[White "Parthenope"]
[Black "the_drake"]
[Result "0-1"]
[WhiteElo "1716"]
[BlackElo "2006"]
[TimeControl "180+2"]
[EndTime "12:15:28 PST"]
[Termination "the_drake won by resignation"]

1. e4 {[%clk 0:03:01.9]} 1... e5 {[%clk 0:03:00.9]} 2. Nf3 {[%clk 0:03:01.3]}
2... Nc6 {[%clk 0:03:02.2]} 3. Bb5 {[%clk 0:03:02.6]} 3... a6 {[%clk 0:03:03]}
4. Ba4 {[%clk 0:03:03.8]} 4... Nf6 {[%clk 0:03:04.1]} 5. O-O {[%clk 0:03:04.8]}
5... b5 {[%clk 0:03:04.4]} 6. Bb3 {[%clk 0:03:05.6]} 6... Be7 {[%clk 0:03:06]}
7. Re1 {[%clk 0:03:05.1]} 7... O-O {[%clk 0:03:06.4]} 8. c3 {[%clk 0:03:04.8]}
8... d5 {[%clk 0:03:07.7]} 9. exd5 {[%clk 0:03:00]} 9... Nxd5 {[%clk 0:03:09.6]}
10. Nxe5 {[%clk 0:03:01.1]} 10... Nxe5 {[%clk 0:03:10.2]} 11. Rxe5 {[%clk
0:03:03]} 11... Bb7 {[%clk 0:03:11.5]} 12. Re1 {[%clk 0:03:00]} 12... Bf6 {[%clk
0:03:09.9]} 13. d4 {[%clk 0:03:00.9]} 13... Re8 {[%clk 0:03:10.9]} 14. Nd2
{[%clk 0:02:51.6]} 14... Nf4 {[%clk 0:03:10.6]} 15. f3 {[%clk 0:02:01.6]} 15...
c5 {[%clk 0:02:41.2]} 16. dxc5 {[%clk 0:01:48.4]} 16... Qd3 {[%clk 0:02:33.2]}
17. Bc2 {[%clk 0:01:31.1]} 17... Rxe1+ {[%clk 0:02:15.8]} 18. Qxe1 {[%clk
0:01:22.6]} 18... Qxc2 {[%clk 0:02:15.1]} 19. g3 {[%clk 0:00:58.6]} 19... Nd3
{[%clk 0:02:14.7]} 20. Qe2 {[%clk 0:00:50.3]} 20... Nxc1 {[%clk 0:02:13.3]} 0-1

[Event "*** Titled Tuesday 3|2 Blitz"]
[Site "Chess.com"]
[Date "2016.02.02"]
[Round "6"]
[White "Colombiano07"]
[Black "davidarenas1224"]
[Result "1-0"]
[WhiteElo "2171"]
[BlackElo "2089"]
[TimeControl "180+2"]
[EndTime "12:15:39 PST"]
[Termination "Colombiano07 won by resignation"]

1. d4 {[%clk 0:02:49.2]} 1... g6 {[%clk 0:03:00.3]} 2. Bf4 {[%clk 0:02:49.3]}
2... Bg7 {[%clk 0:03:00.4]} 3. e3 {[%clk 0:02:50.5]} 3... Nf6 {[%clk 0:03:00.3]}
4. Nf3 {[%clk 0:02:51.2]} 4... O-O {[%clk 0:02:59.9]} 5. Be2 {[%clk 0:02:52]}
5... c5 {[%clk 0:02:59.8]} 6. O-O {[%clk 0:02:52.6]} 6... b6 {[%clk 0:02:59.3]}
7. c3 {[%clk 0:02:53.1]} 7... Bb7 {[%clk 0:03:00.3]} 8. Nbd2 {[%clk 0:02:52.2]}
8... d6 {[%clk 0:03:01.4]} 9. h3 {[%clk 0:02:52.5]} 9... Nbd7 {[%clk 0:02:56.6]}
10. a4 {[%clk 0:02:53.5]} 10... cxd4 {[%clk 0:02:57]} 11. exd4 {[%clk
0:02:52.3]} 11... Nd5 {[%clk 0:02:57.8]} 12. Bh2 {[%clk 0:02:52.2]} 12... Bh6
{[%clk 0:02:59.1]} 13. Re1 {[%clk 0:02:52]} 13... Nf4 {[%clk 0:02:59.8]} 14. Bf1
{[%clk 0:02:52.7]} 14... Rc8 {[%clk 0:02:56.9]} 15. a5 {[%clk 0:02:52.9]} 15...
Re8 {[%clk 0:02:52.5]} 16. axb6 {[%clk 0:02:52.8]} 16... axb6 {[%clk 0:02:53.6]}
17. Nc4 {[%clk 0:02:52.1]} 17... Qc7 {[%clk 0:02:47.8]} 18. Ne3 {[%clk 0:02:52]}
18... Qc6 {[%clk 0:02:40.4]} 19. Ng4 {[%clk 0:02:30.4]} 19... Nxh3+ {[%clk
0:02:21.2]} 20. gxh3 {[%clk 0:02:32.3]} 20... Qxf3 {[%clk 0:02:22.8]} 21. Qxf3
{[%clk 0:02:28.4]} 21... Kg7 {[%clk 0:02:24.3]} 22. Nxh6 {[%clk 0:02:30.3]}
22... Bxf3 {[%clk 0:02:24.4]} 23. Ng4 {[%clk 0:02:22.3]} 23... f5 {[%clk
0:02:21.5]} 24. Ne3 {[%clk 0:02:20.6]} 24... e5 {[%clk 0:02:20.2]} 25. Bg2
{[%clk 0:02:18]} 25... Bxg2 {[%clk 0:02:19.2]} 26. Kxg2 {[%clk 0:02:19.9]} 26...
f4 {[%clk 0:02:20.5]} 27. Nd5 {[%clk 0:02:14.6]} 27... Ra8 {[%clk 0:02:16.2]}
28. Nc7 {[%clk 0:02:12.1]} 28... Rxa1 {[%clk 0:02:17.2]} 29. Nxe8+ {[%clk
0:02:11.7]} 29... Kf7 {[%clk 0:02:18.2]} 30. Nxd6+ {[%clk 0:02:12.1]} 30... Ke6
{[%clk 0:02:19.3]} 31. Rxa1 {[%clk 0:02:11.4]} 31... Kxd6 {[%clk 0:02:20.1]} 32.
dxe5+ {[%clk 0:02:12.4]} 32... Nxe5 {[%clk 0:02:18]} 33. Bxf4 {[%clk 0:02:12.7]}
33... Ke6 {[%clk 0:02:18.6]} 34. Re1 {[%clk 0:02:09.2]} 34... Kf5 {[%clk
0:02:19.1]} 35. Bxe5 {[%clk 0:02:09.6]} 35... g5 {[%clk 0:02:19.3]} 36. Kf3
{[%clk 0:02:08.4]} 36... h5 {[%clk 0:02:20.4]} 37. Bg3 {[%clk 0:02:08.9]} 37...
g4+ {[%clk 0:02:21.2]} 38. hxg4+ {[%clk 0:02:10.8]} 38... hxg4+ {[%clk
0:02:22.4]} 39. Kg2 {[%clk 0:02:12.7]} 39... Kf6 {[%clk 0:02:22.8]} 40. Re5
{[%clk 0:02:14.6]} 40... Kg6 {[%clk 0:02:24]} 41. Rb5 {[%clk 0:02:16.5]} 41...
Kf6 {[%clk 0:02:25.3]} 42. Rxb6+ {[%clk 0:02:18.4]} 42... Kf5 {[%clk 0:02:26.6]}
43. Rd6 {[%clk 0:02:20.3]} 43... Kg5 {[%clk 0:02:27.1]} 44. c4 {[%clk
0:02:22.2]} 1-0

[Event "*** Titled Tuesday 3|2 Blitz"]
[Site "Chess.com"]
[Date "2016.02.02"]
[Round "6"]
[White "kesarev"]
[Black "Danirod"]
[Result "0-1"]
[WhiteElo "2170"]
[BlackElo "2382"]
[TimeControl "180+2"]
[EndTime "12:16:10 PST"]
[Termination "Danirod won by resignation"]

1. e4 {[%clk 0:03:01.9]} 1... c5 {[%clk 0:03:00.5]} 2. c3 {[%clk 0:03:01.8]}
2... d5 {[%clk 0:03:00.9]} 3. exd5 {[%clk 0:03:02.8]} 3... Qxd5 {[%clk
0:03:02.8]} 4. d4 {[%clk 0:03:03.7]} 4... Nc6 {[%clk 0:03:03.6]} 5. Nf3 {[%clk
0:03:04.1]} 5... e5 {[%clk 0:03:04.7]} 6. Be2 {[%clk 0:03:00.5]} 6... exd4
{[%clk 0:03:03.8]} 7. cxd4 {[%clk 0:03:00.7]} 7... cxd4 {[%clk 0:03:05]} 8. O-O
{[%clk 0:02:50.6]} 8... Nf6 {[%clk 0:03:05.9]} 9. Re1 {[%clk 0:02:18.1]} 9...
Be7 {[%clk 0:03:03.8]} 10. Na3 {[%clk 0:02:01.2]} 10... O-O {[%clk 0:02:59]} 11.
Bc4 {[%clk 0:01:58.2]} 11... Qc5 {[%clk 0:02:55.6]} 12. Bf4 {[%clk 0:01:33]}
12... Bg4 {[%clk 0:02:54.1]} 13. Rc1 {[%clk 0:01:30.4]} 13... Qh5 {[%clk
0:02:54.4]} 14. Be2 {[%clk 0:01:03.4]} 14... Bb4 {[%clk 0:02:54.2]} 15. h3
{[%clk 0:00:26.3]} 15... Bxf3 {[%clk 0:02:55.1]} 16. Bxf3 {[%clk 0:00:26.5]}
16... Qf5 {[%clk 0:02:56.5]} 17. Bd2 {[%clk 0:00:25.5]} 17... Bxd2 {[%clk
0:02:56.8]} 18. Qxd2 {[%clk 0:00:27]} 18... Ne5 {[%clk 0:02:56.8]} 19. Bxb7
{[%clk 0:00:26.8]} 19... Rad8 {[%clk 0:02:57.2]} 20. Nc4 {[%clk 0:00:22.8]}
20... Nd3 {[%clk 0:02:52.7]} 21. g4 {[%clk 0:00:18.8]} 21... Qg6 {[%clk
0:02:50.4]} 22. Ne5 {[%clk 0:00:20]} 22... Nxe5 {[%clk 0:02:51.3]} 23. Rxe5
{[%clk 0:00:21.7]} 23... h6 {[%clk 0:02:44.5]} 24. Ba6 {[%clk 0:00:22.7]} 24...
Nxg4 {[%clk 0:02:35.9]} 25. Bd3 {[%clk 0:00:18.7]} 25... Nxe5+ {[%clk 0:02:37]}
26. Bxg6 {[%clk 0:00:19.3]} 26... Nxg6 {[%clk 0:02:38.8]} 27. Rc4 {[%clk
0:00:19.6]} 27... Ne5 {[%clk 0:02:39.8]} 28. Qc1 {[%clk 0:00:17.5]} 28... Nxc4
{[%clk 0:02:40.5]} 29. Qxc4 {[%clk 0:00:19.1]} 29... d3 {[%clk 0:02:42.1]} 30.
Qa4 {[%clk 0:00:20.2]} 30... d2 {[%clk 0:02:43.1]} 31. Qd1 {[%clk 0:00:22.1]}
31... Rfe8 {[%clk 0:02:44.3]} 32. Kg2 {[%clk 0:00:23.6]} 32... Re1 {[%clk
0:02:45.4]} 0-1

[Event "*** Titled Tuesday 3|2 Blitz"]
[Site "Chess.com"]
[Date "2016.02.02"]
[Round "6"]
[White "Matibar"]
[Black "FairChess_on_YouTube"]
[Result "1-0"]
[WhiteElo "2523"]
[BlackElo "2711"]
[TimeControl "180+2"]
[EndTime "12:16:31 PST"]
[Termination "Matibar won by resignation"]

1. e4 {[%clk 0:03:01.9]} 1... c5 {[%clk 0:03:00.2]} 2. Nf3 {[%clk 0:03:01.5]}
2... e6 {[%clk 0:03:01.2]} 3. d4 {[%clk 0:03:01.1]} 3... cxd4 {[%clk 0:03:03.1]}
4. Nxd4 {[%clk 0:03:02.6]} 4... a6 {[%clk 0:03:04.6]} 5. Nc3 {[%clk 0:03:03.5]}
5... Qc7 {[%clk 0:03:04.2]} 6. Bd3 {[%clk 0:02:58.5]} 6... Nc6 {[%clk
0:02:58.8]} 7. Nb3 {[%clk 0:02:58.1]} 7... Nf6 {[%clk 0:02:57.5]} 8. f4 {[%clk
0:02:57.8]} 8... Bb4 {[%clk 0:02:49]} 9. O-O {[%clk 0:02:57.9]} 9... Bxc3 {[%clk
0:02:26.2]} 10. bxc3 {[%clk 0:02:59.8]} 10... d6 {[%clk 0:02:27.6]} 11. c4
{[%clk 0:02:47.5]} 11... O-O {[%clk 0:02:27.3]} 12. Bb2 {[%clk 0:02:45.7]} 12...
e5 {[%clk 0:02:27.8]} 13. fxe5 {[%clk 0:02:41.9]} 13... Nxe5 {[%clk 0:02:25.3]}
14. Rxf6 {[%clk 0:02:34.9]} 14... gxf6 {[%clk 0:02:25]} 15. Qf1 {[%clk
0:02:34.1]} 15... Qe7 {[%clk 0:02:20.5]} 16. Nd4 {[%clk 0:02:25.3]} 16... Kh8
{[%clk 0:02:17.8]} 17. Qf4 {[%clk 0:02:14.9]} 17... Rg8 {[%clk 0:02:18.3]} 18.
Rf1 {[%clk 0:02:16.5]} 18... Rg6 {[%clk 0:02:12.1]} 19. Nf3 {[%clk 0:01:57.7]}
19... Bh3 {[%clk 0:02:00.8]} 20. Nh4 {[%clk 0:01:49.8]} 20... Rg4 {[%clk
0:01:50.8]} 21. Qxf6+ {[%clk 0:01:49.2]} 21... Qxf6 {[%clk 0:01:50.9]} 22. Rxf6
{[%clk 0:01:51.1]} 22... Rxh4 {[%clk 0:01:28.6]} 23. Rxd6 {[%clk 0:01:44.2]}
23... Re8 {[%clk 0:01:25.7]} 24. gxh3 {[%clk 0:01:30.8]} 24... Rf4 {[%clk
0:01:23.7]} 25. Rd8 {[%clk 0:01:24.5]} 1-0